Cogmind - Beta 14 @@@ ROGUE MODE // 2024.12.01 @ 16:14:37 Player: hanna Result: Destroyed by G-47 Trooper with Particle Gun Performance ------------- Evolutions (2) 1000 Regions Visited (5) 1000 Robots Destroyed (87) 435 Value Destroyed (2092) 2092 Prototype IDs (4) 80 Alien Tech Used (0) 0 Bonus (105) 105 TOTAL SCORE: 4712 Bonus ------- High Alert Combat Kills 105 Cogmind --------- Core Integrity 0/550 Matter 292/300 Energy 158/160 System Corruption 0% Temperature Cool (52) Movement Walking (190) Ox1 Location -8/Storage Parts ------- > --- POWER (1) -------- Light Nuclear Core > --- PROPULSION (2) --- Aluminum Leg Aluminum Leg > --- UTILITY (6) ------ Medium Storage Unit Terrain Scan Processor Propulsion Shielding Light Armor Plating Trap Extractor (0/4) Field Recycling Unit > --- WEAPON (2) ------- Enhanced Autogun Enhanced Autogun > --- INVENTORY (10) --- Aluminum Leg Light Armor Plating System Restoration Module Field Laser Advanced Beam Rifle Advanced Beam Rifle Improved Grenade Launcher Improved Grenade Launcher Peak State ------------ > --- POWER ------------ Light Nuclear Core > --- PROPULSION ------- Aluminum Leg Aluminum Leg > --- UTILITY ---------- Medium Storage Unit Terrain Scan Processor Propulsion Shielding Light Armor Plating Trap Extractor Field Recycling Unit > --- WEAPON ----------- Enhanced Autogun Enhanced Autogun > --- INVENTORY -------- Aluminum Leg System Restoration Module Field Laser Advanced Beam Rifle Advanced Beam Rifle Improved Grenade Launcher Improved Grenade Launcher [Rating: 24] Favorites ----------- Power Deuterium Engine Engine Deuterium Engine Power Core Light Nuclear Core Propulsion Aluminum Leg Treads Light Treads Leg Aluminum Leg Utility Medium Storage Unit Device Improved Terrain Scanner Storage Medium Storage Unit Processor Terrain Scan Processor Protection Light Armor Plating Weapon Autogun Energy Gun Medium Laser Energy Cannon Ion Cannon Ballistic Gun Autogun Ballistic Cannon Flak Cannon Launcher Rocket Launcher Special Weapon Mining Laser Build | -11 -10 -10 -9 -8 -8 ------- Run | Yrd Mat Min Mat Mat Sto Slots Evolved 4 | . . . 2 2 . Power . | . . . . . . Propulsion . | . . . . . . Utility 4 | . . . 2 2 . Weapon . | . . . . . . Parts Attached 59 | 9 2 1 11 19 17 Power 8 | 1 1 . 2 3 1 Engine 6 | 1 1 . 2 2 . Core 2 | . . . . 1 1 Reactor . | . . . . . . Propulsion 14 | 2 1 . 2 6 3 Treads 4 | . . . . 4 . Leg 10 | 2 1 . 2 2 3 Wheel . | . . . . . . Hover . | . . . . . . Flight . | . . . . . . Utility 13 | 2 . . 5 3 3 Device 6 | 1 . . 2 2 1 Storage 3 | 1 . . 2 . . Processor 1 | . . . 1 . . Hackware . | . . . . . . Protection 3 | . . . . 1 2 Artifact . | . . . . . . Weapon 24 | 4 . 1 2 7 10 Energy Gun 7 | 2 . . . 2 3 Energy Cannon 1 | . . . . 1 . Ballistic Gun 11 | 1 . . 2 2 6 Ballistic Cannon 1 | . . . . 1 . Launcher 3 | . . 1 . 1 1 Special Weapon 1 | 1 . . . . . Impact Weapon . | . . . . . . Slashing Weapon . | . . . . . . Piercing Weapon . | . . . . . . Special Melee Weapon . | . . . . . . Unidentified Prototypes 4 | . . . . . 4 Parts Lost 17 | . 1 . 1 12 3 Power 3 | . 1 . . 1 1 Propulsion 6 | . . . . 5 1 Utility 4 | . . . . 3 1 Weapon 4 | . . . 1 3 . Highest Loss Streak 6 | . 1 . 1 6 2 To Critical Strikes . | . . . . . . Average Slot Usage (%) 84 | . 97 95 90 81 71 Engine 8 | . 12 14 11 8 1 Core 1 | . . . . . 6 Treads 1 | . . . . 4 1 Leg 17 | . 28 28 22 9 13 Device 16 | . 14 14 15 20 13 Storage 13 | . 14 14 20 9 9 Processor 6 | . . . 4 9 9 Protection 1 | . . . . 4 2 Energy Gun 3 | . 14 10 . 5 . Energy Cannon 1 | . . . . 4 . Ballistic Gun 8 | . 14 10 9 3 11 Launcher 2 | . . 4 6 1 . Peak Build Rating 24 | 9 9 10 17 23 24 Average Rating 15 | 6 8 9 13 19 18 On Entrance 10 | . 9 9 9 17 16 Naked Turns . | . . . . . . Heaviest Build 41 | 13 13 13 31 41 35 Greatest Support 40 | 20 20 20 20 40 20 Greatest Overweight (x) 10 | . . . 1 10 8 Average Overweight (x) . | . . . . 1 1 Largest Inventory Capacity 10 | 8 8 8 10 10 10 Average Capacity 9 | 7 8 8 9 10 10 Most Carried 10 | 3 5 2 6 8 10 Average Carried 4 | . 2 . 3 5 6 Final Capacity 10 | 8 8 8 10 10 10 Final Carried 8 | 1 . 2 5 7 8 Class Distribution -------------------- 63% | Mutant 36% | Scavenger-Mutant Dominant Class ---------------- Mutant | -10/Materials Scavenger-Mutant | -10/Mines Mutant | -9/Materials Scavenger-Mutant | -8/Materials Mutant | -8/Storage Resources | -11 -10 -10 -9 -8 -8 ----------- Run | Yrd Mat Min Mat Mat Sto Matter Collected 1900 | 279 110 . 436 300 775 Remotely . | . . . . . . Salvage Created 2581 | 72 212 . 454 704 1139 Parts 197 | 4 21 . 50 59 63 Haulers Intercepted 6 | . . . . 1 5 Recyclers Shooed 4 | . 3 . . . 1 Parts Field Recycled 8 | . . . . 6 2 Retrieved Matter 47 | . . . . 31 16 Parts Self-Destructed . | . . . . . . Prevented . | . . . . . . Kills | -11 -10 -10 -9 -8 -8 ------- Run | Yrd Mat Min Mat Mat Sto Combat Hostiles Destroyed 59 | . 5 . 18 19 17 Guns 28 | . 5 . 7 6 10 Cannons 14 | . . . . 8 6 AOE 17 | . . . 11 5 1 Classes Destroyed 13 | 2 5 . 3 2 1 Worker 5 | . . . 1 2 2 Builder 4 | . 1 . 2 . 1 Tunneler 2 | 1 . . 1 . . Hauler 6 | . . . . 1 5 Recycler 6 | 1 . . 1 . 4 Mechanic 1 | . 1 . . . . Operator 2 | . 1 . . 1 . Watcher 2 | . . . 2 . . Swarmer 23 | . 3 . 9 7 4 Grunt 22 | . 2 . 5 7 8 Duelist 1 | . . . . . 1 Sentry 12 | . . . 4 4 4 Heavy 1 | . . . . 1 . Best Kill Streak 8 | 2 5 . 8 5 6 Combat Bots Only 6 | . 3 . 6 5 5 Max Kills in Single Turn 3 | 1 2 . 3 3 2 Gunslinging 1 | . 1 . . . 1 Exploded 3 | . . . 2 3 1 Melee . | . . . . . . Uniques/NPCs Destroyed . | . . . . . . Combat | -11 -10 -10 -9 -8 -8 -------- Run | Yrd Mat Min Mat Mat Sto Hostile Shots Fired 331 | . 44 . 72 115 100 Missed 101 | . 13 . 18 41 29 Damage Taken 3475 | . 374 . 549 1522 1030 Core 742 | . 72 . 107 342 221 Absorbed by Shields 76 | . . . 76 . . Redirected to Shielding 19 | . . . . . 19 Regen/Repaired (Parts) 73 | . . . 73 . . Core Remaining (%) 81 | 100 . 71 73 . . Volleys Fired 223 | 14 28 . 41 60 80 Largest 2 | 2 2 . 2 2 2 Hottest 125 | 100 70 . 46 125 55 Shots Fired 344 | 17 56 . 62 89 120 Gun 243 | 6 56 . 42 51 88 Cannon 59 | . . . . 29 30 Launcher 31 | . . . 20 9 2 Special 11 | 11 . . . . . Kinetic 221 | 3 28 . 42 35 113 Thermal 92 | 14 28 . . 45 5 Explosive 31 | . . . 20 9 2 Electromagnetic . | . . . . . . Robot Hit Streak 12 | 4 7 . 6 12 10 Robot Miss Streak 6 | 1 3 . 6 2 5 Penetration Max . | . . . . . . Secondary Targets 8 | . 2 . 2 1 3 Max Gunslinging Chain 1 | . 1 . 1 1 1 Shots Hit Robots 234 | 4 35 . 31 68 96 Core Hits 167 | 3 15 . 42 38 69 Critical Kills . | . . . . . . Critical Parts Destroyed 1 | . . . . 1 . Critical Strikes 2 | . 1 . . 1 . Burn 1 | . 1 . . . . Destroy 1 | . . . . 1 . Melee Attacks . | . . . . . . Impact . | . . . . . . Slashing . | . . . . . . Piercing . | . . . . . . Sneak Attacks . | . . . . . . Combat Hostiles . | . . . . . . Follow-up Attacks . | . . . . . . Damage Inflicted 5466 | 48 457 . 1497 1593 1871 Guns 2598 | 48 457 . 361 595 1137 Cannons 1051 | . . . . 486 565 Explosions 1817 | . . . 1136 512 169 Melee . | . . . . . . Ramming . | . . . . . . Kinetic 2724 | 23 268 . 361 429 1643 Thermal 925 | 25 189 . . 652 59 Explosive 1684 | . . . 1003 512 169 Electromagnetic 133 | . . . 133 . . Impact . | . . . . . . Slashing . | . . . . . . Piercing . | . . . . . . Highest Corruption . | . . . . . . Average Corruption . | . . . . . . Corruption Purged . | . . . . . . Corruption Blocked . | . . . . . . Overload Shots . | . . . . . . Overflow Damage 37 | . . . 10 27 . Projectiles . | . . . . . . Explosions 37 | . . . 10 27 . Melee . | . . . . . . Knockbacks 11 | . . . . . 11 Impact . | . . . . . . Kinetic 11 | . . . . . 11 Secondary . | . . . . . . Self-Inflicted Damage 236 | . . . 35 201 . Shots 10 | . . . 3 7 . Rammed . | . . . . . . Targets Rammed . | . . . . . . Kicked . | . . . . . . Crushed . | . . . . . . Highest Temperature 438 | 120 124 . 13 102 438 Average Temperature 39 | 34 46 . 3 25 67 Received Heat Transfer 1259 | . 204 . 101 405 549 Siege Activations . | . . . . . . Robots Corrupted . | . . . . . . Combat Hostiles . | . . . . . . Parts Fried . | . . . . . . Impact Corruptions . | . . . . . . Robots Melted . | . . . . . . Combat Hostiles . | . . . . . . Parts Melted 3 | . 1 . . 2 . Heat Transferred 1998 | 74 629 . . 1184 111 Parts Sabotaged . | . . . . . . Parts Stolen . | . . . . . . Parts Stripped . | . . . . . . Power Chain Reactions . | . . . . . . Alert | -11 -10 -10 -9 -8 -8 ------- Run | Yrd Mat Min Mat Mat Sto Peak Influence 602 | 10 267 103 602 467 489 Initial 196 | . 6 103 39 190 196 Average 277 | 7 151 103 379 239 337 Maximum Alert Level 2 | . 1 . 2 2 2 Low Security (%) 28 | 100 67 100 9 26 10 Level 1 44 | . 32 . 31 63 65 Level 2 26 | . . . 59 9 23 Level 3 . | . . . . . . Level 4 . | . . . . . . Level 5 . | . . . . . . High Security . | . . . . . . Max Security . | . . . . . . Squads Dispatched 7 | . 1 . 1 3 2 Investigation 1 | . . . . . 1 Extermination . | . . . . . . Reinforcement 5 | . 1 . 1 2 1 Assault . | . . . . . . Garrison 1 | . . . . 1 . Intercept . | . . . . . . Searches Triggered . | . . . . . . Construction Impeded . | . . . . . . Haulers Reinforced . | . . . . . . Active Scanning Responses . | . . . . . . Cargo Convoy Interrupts . | . . . . . . Stealth | -11 -10 -10 -9 -8 -8 --------- Run | Yrd Mat Min Mat Mat Sto Distress Signals 6 | . . . 1 2 3 Communications Jammed . | . . . . . . Distress Signals . | . . . . . . Times Spotted 84 | . 15 . 23 25 21 Peak Tracking Total 5 | . 3 . 4 5 5 Tactical Retreats 5 | . 3 . 1 1 . Traps | -11 -10 -10 -9 -8 -8 ------- Run | Yrd Mat Min Mat Mat Sto Traps Triggered 1 | . . . . . 1 Indirectly . | . . . . . . Trap Hack Attempts . | . . . . . . Triggered . | . . . . . . Disarmed . | . . . . . . Reprogrammed . | . . . . . . Reused . | . . . . . . Traps Extracted . | . . . . . . Installed . | . . . . . . Triggered . | . . . . . . Machines | -11 -10 -10 -9 -8 -8 ---------- Run | Yrd Mat Min Mat Mat Sto Machines Disabled 8 | . 2 . 5 1 . Max in Single Turn 2 | . 1 . 2 1 . Machines Repaired . | . . . . . . Machines Dismantled . | . . . . . . Machines Sabotaged . | . . . . . . Overloaded Fab Kills . | . . . . . . Hacking | -11 -10 -10 -9 -8 -8 --------- Run | Yrd Mat Min Mat Mat Sto Machines Accessed 5 | . 1 . 1 1 2 Terminals 3 | . 1 . . 1 1 Fabricators . | . . . . . . Repair Stations 1 | . . . 1 . . Recycling Units 1 | . . . . . 1 Scanalyzers . | . . . . . . Garrison Access . | . . . . . . Total Hacks 7 | . 1 . 2 1 3 Successful 5 | . . . 2 1 2 Failed 2 | . 1 . . . 1 Catastrophic . | . . . . . . Database Lockouts . | . . . . . . Manual . | . . . . . . Terminals 3 | . 1 . . 1 1 Fabricators . | . . . . . . Repair Stations 2 | . . . 2 . . Recycling Units 2 | . . . . . 2 Scanalyzers . | . . . . . . Garrison Access . | . . . . . . Terminal Hacks 2 | . . . . 1 1 Emergency Access Points 1 | . . . . . 1 Locate Traps 1 | . . . . 1 . Fabricator Hacks . | . . . . . . Repair Station Hacks 2 | . . . 2 . . Scan Component 1 | . . . 1 . . Repair 1 | . . . 1 . . Recycling Unit Hacks 1 | . . . . . 1 Retrieve Matter 1 | . . . . . 1 Scanalyzer . | . . . . . . Garrison Access Hacks . | . . . . . . Unauthorized Hacks . | . . . . . . Terminals . | . . . . . . Fabricators . | . . . . . . Repair Stations . | . . . . . . Recycling Units . | . . . . . . Scanalyzers . | . . . . . . Garrison Access . | . . . . . . Data Cores Recovered . | . . . . . . Used . | . . . . . . Hacking Detections 1 | . 1 . . . . Full Trace Events . | . . . . . . Feedback Events . | . . . . . . Feedback Blocked . | . . . . . . Robot Schematics Acquired . | . . . . . . Robots Built . | . . . . . . Authchips . | . . . . . . Time . | . . . . . . Total Robot Build Rating . | . . . . . . Part Schematics Acquired . | . . . . . . Parts Built . | . . . . . . Authchips . | . . . . . . Time . | . . . . . . Total Part Build Rating . | . . . . . . Parts Repaired 1 | . . . 1 . . Time 26 | . . . 26 . . Parts Recycled . | . . . . . . Recycled Matter . | . . . . . . Retrieved Matter . | . . . . . . Retrieved Components . | . . . . . . Parts Scanalyzed . | . . . . . . Part Schematics Acquired . | . . . . . . Parts Damaged . | . . . . . . Bothacking | -11 -10 -10 -9 -8 -8 ------------ Run | Yrd Mat Min Mat Mat Sto Used RIF Installer . | . . . . . . Robots Hacked . | . . . . . . Non-combat . | . . . . . . Combat . | . . . . . . Robot Hacks Applied . | . . . . . . Relay Couplers Released . | . . . . . . Fabnet Peak Effective % . | . . . . . . Robots Rewired . | . . . . . . Allies Hacked . | . . . . . . Hacks Repelled . | . . . . . . Allies | -11 -10 -10 -9 -8 -8 -------- Run | Yrd Mat Min Mat Mat Sto Total Allies . | . . . . . . Largest Group . | . . . . . . Highest-Rated Group . | . . . . . . Highest-Rated Ally . | . . . . . . Total Orders . | . . . . . . Ally Attacks . | . . . . . . Total Damage . | . . . . . . Kills . | . . . . . . Allies Corrupted . | . . . . . . Allies Melted . | . . . . . . Intel | -11 -10 -10 -9 -8 -8 ------- Run | Yrd Mat Min Mat Mat Sto Robot Analysis Total . | . . . . . . Derelict Logs Recovered 1 | . . 1 . . . Drone Launches . | . . . . . . Drone Recoveries . | . . . . . . Exploration | -11 -10 -10 -9 -8 -8 ------------- Run | Yrd Mat Min Mat Mat Sto Turns Passed 2639 | 173 281 66 832 690 597 Spaces Moved 1111 | 90 158 50 429 199 185 Core 19 | 8 . . . 9 2 Treads 102 | . . . . 72 30 Legs 990 | 82 158 50 429 118 153 Wheels . | . . . . . . Hover . | . . . . . . Flight . | . . . . . . Fastest Speed 50 | 50 120 120 120 190 190 Average Speed 169 | 113 120 120 157 242 202 Slowest Speed 550 | 120 120 120 190 550 450 Overloaded Moves . | . . . . . . Propulsion Burnouts . | . . . . . . Robots Hopped . | . . . . . . Cave-ins Triggered . | . . . . . . Exploration Rate (%) 24 | 6 31 11 38 22 38 Regions Visited 5 Branch Regions 2 Pre-discovered Areas 1 | . . 1 . . . Known Exits Taken . | . . . . . . Unknown Exits Taken 5 | 1 1 1 1 1 . Scrap Searched . | . . . . . . Spaces Dug 4 | 4 . . . . . Terrain Destroyed 237 | 7 . . 167 45 18 Melee . | . . . . . . Projectile 8 | 7 . . . 1 . AOE 229 | . . . 167 44 18 Terrain Rammed . | . . . . . . Walls Destroyed . | . . . . . . Machines Disabled . | . . . . . . Actions | -11 -10 -10 -9 -8 -8 --------- Run | Yrd Mat Min Mat Mat Sto Total 1535 | 120 195 56 532 322 310 Wait 56 | . . 4 26 26 . Move 1106 | 89 157 49 428 198 185 Hop . | . . . . . . Pick Up 63 | 8 4 1 17 15 18 Fast Attach . | . . . . . . Attach 32 | 7 1 . 4 12 8 Detach 2 | . . 1 . 1 . Swap 27 | 2 1 1 7 7 9 Drop 26 | . 4 . 9 3 10 Fire 223 | 14 28 . 41 60 80 Melee . | . . . . . . Ram . | . . . . . . Kick . | . . . . . . Crush . | . . . . . . Escape Stasis . | . . . . . . Rewire . | . . . . . . Trap . | . . . . . . Miscellaneous . | . . . . . . Route ------- -11/Scrapyard -10/Materials -10/Mines -9/Materials -8/Materials (discovered 2 exits: [*Fac] / *Sto) -8/Storage History --------- Turn | Location | Event 2 | -11/Scrapyard | Met Revision 17 6 | -11/Scrapyard | Discovered new exit (range 15) 174 | -11/Scrapyard | Entered Materials 247 | -10/Materials | Discovered new exit (range 10) 305 | -10/Materials | Build established: Mutant 455 | -10/Materials | Entered Mines 456 | -10/Mines | Learned location of Storage (-8) 464 | -10/Mines | Learned Materials terminal intel 472 | -10/Mines | Discovered new exit (range 5) 490 | -10/Mines | Received a Rocket Launcher from a helpful Derelict 521 | -10/Mines | Entered Materials 521 | -9/Materials | Evolved 2 slots: Utility x2 522 | -9/Materials | Loaded intel: 12 terminal locations 704 | -9/Materials | Build established: Scavenger-Mutant 1082 | -9/Materials | Build established: Mutant 1267 | -9/Materials | Discovered new exit (range 16) 1339 | -9/Materials | Repaired Aluminum Leg 1353 | -9/Materials | Entered another Materials area 1353 | -8/Materials | Evolved 2 slots: Utility x2 1383 | -8/Materials | Garrison activated, responded to threat 1478 | -8/Materials | Lost 6 parts (1p2n1u2w) 1748 | -8/Materials | Build established: Scavenger-Mutant 1819 | -8/Materials | Discovered new exit (range 13) 1914 | -8/Materials | Lost 5 parts (2n2u1w) 2019 | -8/Materials | Discovered new exit (range 3) 2031 | -8/Materials | Core integrity fell below 50% 2043 | -8/Materials | Entered Storage 2148 | -8/Storage | Core integrity fell below 20% 2158 | -8/Storage | Build established: Mutant 2640 | -8/Storage | Destroyed by G-47 Trooper with Particle Gun Last Messages --------------- K-01 Serf collects debris. K-01 Serf destroyed. Switching to secondary target: S-10 Pest. K-01 Serf collects debris. S-10 Pest destroyed. Switching to secondary target: S-10 Pest. K-01 Serf collects debris. S-10 Pest destroyed. Switching to secondary target: S-10 Pest. S-10 Pest destroyed. K-01 Serf collects debris. Extracted 56 matter. U-05 Engineer lays Concrete. K-01 Serf collects debris. U-05 Engineer lays Concrete. Acquired 8 matter. U-05 Engineer lays Concrete. K-01 Serf collects debris. Acquired 8 matter. G-47 Trooper destroyed. Map ----- +----------------------------------------------------+ | | | | | | | | | | | | | ??????????????????????????????????????????????? | | ??????????????????????????????????????????????? | | ??????????????????????????????????????????????? | | ??????????????????????????????????????????????? | | ??????????????????????????????????????????????? | | ??????????????????????????????????????????????? | | ??????????????????????????????????????????????? | | ???????????????????##+##+#????????????????????? | | ??????????????????? #????????????????????? | | ???????????????????? ?????????????????????? | | ???????????????????? ?????????????????????? | | ???????????????????? ! ?????????????????????? | | ???????????????????? ?????????????????????? | | ????????????????????? ??????????????????????? | | ????????????????????? = ?????????+????????????? | | ????????????????????? ??????????????????????? | | ?????????????????????!%*??????????????????????? | | ?????????????????????#g#??????????????????????? | | ?????????????????????#[#??????????????????????? | | ???????????????????###@###????????###+###?????? | | ???????????????????#[*k!*####+##### #?????? | | ???????????????????# ==%= u #?????? | | ???????????????????+ = !* ! #?????? | | ???????????????????# =%[ = =! #?????? | | ???????????????????# #####+#### = #?????? | | ???????????????????#######???# T#?##= ######## | | ?????????????????????????????#"##??# # | | ???????????????????????????????????# # """ | | ???????????????????????????????????# [#! "T" | | ???????????????????????????????????# / ] | | ???????????????????????????????????# # ] | | ???????????????????????????????????# # [ == | | ???????????????????????????????????# # = | | ???????????????????????????????????# # = | | ???????????????????????????????????# # = [ | | ???????????????????????????????????#########+## | | ???????????????????????????????????????????#!#? | | ???????????????????????????????????????????#=#? | | ???????????????????????????????????????????#[#? | | ????????????????????????????################ #? | | ????????????????????????????# + =[[ #? | | ????????????????????????????? ####!![[#? | | ????????????????????????????? #??# ##+## | | ?????????????????????????????? ???# # | +----------------------------------------------------+ Best States ------------- Heat Dissipation 45 Energy Generation 14 Energy Capacity 475 Matter Stores 300 Matter Capacity 300 Sight Range 16 Terrain Scan Range 16 Terrain Scan Density 85 Armor Coverage 150 Propulsion Shielding 33 Evasion (%) 55 Recoil Reduction 2 Trap Extractor Capacity 4 Item Schematics ----------------- None Robot Schematics ------------------ None Fabricated ------------ Nothing Alien Tech Used ----------------- None Achievements -------------- None Challenges ------------ None Game ------ Seed GyrokineticWeightMonowheel Manual? 0 Play Time 00:27:01 Cumulative 24.5 hours Start 2024.12.01 @ 15:48:03 End 2024.12.01 @ 16:14:37 Sessions 1 Manual Loads 0 Difficulty Rogue Special Mode None Game No. 44 Rogue 44 Adventurer 0 Explorer 0 Win Type - Total 0 Types 0/0/0/0/0/0/0/0/0 Lore% 15 Gallery% 23 Achievement% 19 Wizard Run 0 Options --------- Layout 1 ASCII 0 Keyboard 0 Movement Mouse Keybinds 0 Fullscreen 1 Font 24/Terminus Map View 50x35 Zoom Use 0% Tactical HUD 0 Map Filters NONE Filters NONE Steam 1 RUN: f1196806-f73b-4f09-a001-e241c57890aa